fUSD/lending_fUSD_20240329
["ID","MTS","AMOUNT","RATE_DAILY","PERIOD"]
[320896329,1711673451648,-500.0,0.00049589,120]
[320896330,1711673451658,-500.0,0.00049589,120]
[320896331,1711673451667,-500.0,0.00049589,120]
[320896332,1711673451676,-500.0,0.00049589,120]
[320896333,1711673451687,-254.44,0.00049589,120]
[320896334,1711673451696,-500.0,0.00049589,120]
[320896335,1711673451705,-500.0,0.00049589,120]
[320896336,1711673451715,-500.0,0.00049589,120]
[320896337,1711673451725,-500.0,0.00049589,120]
[320896338,1711673451736,-381.14,0.00049589,120]
[320896339,1711673451745,-500.0,0.00049589,120]
[320896340,1711673451755,-500.0,0.00049589,120]
[320896341,1711673451765,-500.0,0.00049589,120]
[320896342,1711673451774,-500.0,0.00049589,30]
[320896343,1711673451784,-500.0,0.00049589,120]
[320896344,1711673451794,-500.0,0.00049589,120]
[320896345,1711673451804,-752.88,0.00049589,120]
[320896346,1711673451814,-500.0,0.00049589,120]
[320896347,1711673451825,-500.0,0.00049589,120]
[320896348,1711673451834,-500.34,0.00049589,120]
[320896349,1711673451844,-500.0,0.00049589,120]
[320896350,1711673451854,-500.0,0.00049589,120]
[320896351,1711673451863,-500.0,0.00049589,120]
[320896352,1711673451875,-500.0,0.00049589,120]
[320896353,1711673451884,-500.0,0.00049589,120]
[320896354,1711673451893,-500.0,0.00049589,120]
[320896355,1711673451903,-500.0,0.00049589,120]
[320896356,1711673451912,-535.8,0.00049589,120]
[320896357,1711673451921,-500.0,0.00049589,120]
[320896358,1711673451931,-500.0,0.00049589,120]
[320896359,1711673451941,-353.78,0.00049589,120]
[320896360,1711673451950,-500.0,0.00049589,120]
[320896361,1711673451960,-500.0,0.00049589,120]
[320896362,1711673451969,-500.0,0.00049589,120]
[320896363,1711673451978,-500.0,0.00049589,120]
[320896364,1711673451987,-500.0,0.00049589,120]
[320896365,1711673451997,-171.27,0.00049589,120]
[320896366,1711673452006,-511.11,0.00049589,120]
[320896367,1711673452015,-500.0,0.00049589,120]
[320896368,1711673452024,-500.0,0.00049589,120]
[320896369,1711673452033,-500.0,0.00049589,120]
[320896370,1711673452042,-500.0,0.00049589,120]
[320896371,1711673452054,-500.0,0.00049589,120]
[320896372,1711673452063,-500.0,0.00049589,120]
[320896373,1711673452072,-158.62,0.00049589,120]
[320896374,1711673452082,-500.0,0.00049589,120]
[320896375,1711673452093,-500.0,0.00049589,120]
[320896376,1711673452102,-500.0,0.00049589,120]
[320896377,1711673452111,-500.0,0.00049589,120]
[320896378,1711673452120,-555.92,0.00049589,120]
[320896379,1711673452130,-520.88,0.00049589,120]
[320896380,1711673452139,-500.0,0.00049589,120]
[320896381,1711673452148,-500.0,0.00049589,120]
[320896382,1711673452158,-151.0,0.00049589,120]
[320896383,1711673452167,-151.0,0.00049589,120]
[320896384,1711673452176,-151.0,0.00049589,120]
[320896385,1711673452185,-500.0,0.00049589,120]
[320896386,1711673452196,-500.0,0.00049589,120]
[320896387,1711673452205,-500.0,0.00049589,120]
[320896388,1711673452217,-261.381328,0.00049589,60]
[320896389,1711673452227,-500.0,0.00049589,120]
[320896390,1711673452236,-261.381328,0.00049589,60]
[320896391,1711673452245,-261.381328,0.00049589,60]
[320896392,1711673452254,-261.381328,0.00049589,60]
[320896393,1711673452264,-261.381328,0.00049589,60]
[320896394,1711673452273,-261.381328,0.00049589,60]
[320896395,1711673452282,-261.381328,0.00049589,60]
[320896396,1711673452292,-261.381328,0.00049589,60]
[320896397,1711673452302,-500.0,0.00049589,120]
[320896398,1711673452311,-500.0,0.00049589,120]
[320896399,1711673452321,-500.0,0.00049589,120]
[320896400,1711673452330,-500.0,0.00049589,120]
[320896401,1711673452339,-500.0,0.00049589,120]
[320896402,1711673452348,-500.0,0.00049589,120]
[320896403,1711673452358,-500.0,0.00049589,120]
[320896404,1711673452367,-500.0,0.00049589,120]
[320896405,1711673452376,-565.98,0.00049589,120]
[320896406,1711673452385,-500.0,0.00049589,120]
[320896407,1711673452394,-506.71770232,0.00049589,120]
[320896408,1711673452403,-500.0,0.00049589,120]
[320896409,1711673452413,-500.0,0.00049589,120]
[320896410,1711673452422,-500.0,0.00049589,120]
[320896411,1711673452431,-500.0,0.00049589,120]
[320896412,1711673452442,-500.0,0.00049589,120]
[320896413,1711673452451,-505.24980131,0.00049589,120]
[320896414,1711673452461,-500.0,0.00049589,120]
[320896415,1711673452470,-500.0,0.00049589,120]
[320896416,1711673452479,-500.0,0.00049589,120]
[320896417,1711673452489,-500.0,0.00049589,120]
[320896418,1711673452498,-500.0,0.00049589,120]
[320896419,1711673452508,-500.0,0.00049589,120]
[320896420,1711673452517,-500.0,0.00049589,120]
[320896421,1711673452526,-500.0,0.00049589,120]
[320896422,1711673452535,-208.25606584,0.00049589,120]
[320896423,1711673452544,-500.0,0.00049589,120]
[320896424,1711673452553,-500.0,0.00049589,120]
[320896425,1711673452562,-500.0,0.00049589,120]
[320896426,1711673452572,-212.61,0.00049589,120]
[320896427,1711673452581,-536.56,0.00049589,120]
[320896428,1711673452590,-500.0,0.00049589,120]
[320896429,1711673452599,-500.0,0.00049589,120]
[320896430,1711673452609,-331.3,0.00049589,120]
[320896431,1711673452618,-500.0,0.00049589,120]
[320896432,1711673452627,-500.0,0.00049589,120]
[320896433,1711673452636,-500.0,0.00049589,120]
[320896434,1711673452646,-377.4,0.00049589,120]
[320896435,1711673452655,-300.34,0.00049589,120]
[320896436,1711673452664,-500.0,0.00049589,120]
[320896437,1711673452673,-500.0,0.00049589,120]
[320896438,1711673452682,-414.58,0.00049589,120]
[320896439,1711673452693,-500.0,0.00049589,120]
[320896440,1711673452703,-500.0,0.00049589,120]
[320896441,1711673452712,-500.0,0.00049589,120]
[320896442,1711673452722,-500.0,0.00049589,120]
[320896443,1711673452731,-500.0,0.00049589,120]
[320896444,1711673452740,-500.0,0.00049589,120]
[320896445,1711673452749,-512.90436581,0.00049589,120]
[320896446,1711673452758,-500.0,0.00049589,120]
[320896447,1711673452767,-500.0,0.00049589,120]
[320896448,1711673452777,-500.0,0.00049589,120]
[320896449,1711673452786,-500.0,0.00049589,120]
[320896450,1711673452796,-500.0,0.00049589,120]
[320896451,1711673452806,-500.0,0.00049589,120]
[320896452,1711673452815,-500.0,0.00049589,120]
[320896453,1711673452825,-500.0,0.00049589,120]
[320896454,1711673452834,-496.4,0.00049589,120]
[320896455,1711673452843,-500.0,0.00049589,120]
[320896456,1711673452853,-543.24,0.00049589,120]
[320896457,1711673452862,-500.0,0.00049589,120]
[320896458,1711673452871,-164.28,0.00049589,120]
[320896459,1711673452880,-500.0,0.00049589,120]
[320896460,1711673452890,-500.0,0.00049589,120]
[320896461,1711673452899,-500.0,0.00049589,120]
[320896462,1711673452908,-500.0,0.00049589,120]
[320896463,1711673452918,-296.34,0.00049589,120]
[320896464,1711673452927,-500.0,0.00049589,120]
[320896465,1711673452936,-500.0,0.00049589,120]
[320896466,1711673452947,-500.0,0.00049589,120]
[320896467,1711673452956,-500.0,0.00049589,120]
[320896468,1711673452967,-500.0,0.00049589,120]
[320896469,1711673452976,-500.0,0.00049589,120]
[320896470,1711673452986,-500.0,0.00049589,120]
[320896471,1711673452995,-500.0,0.00049589,120]
[320896472,1711673453005,-500.0,0.00049589,120]
[320896473,1711673453014,-500.0,0.00049589,120]
[320896474,1711673453023,-500.0,0.00049589,120]
[320896475,1711673453032,-528.31,0.00049589,120]
[320896476,1711673453042,-500.0,0.00049589,120]
[320896477,1711673453053,-500.0,0.00049589,120]
[320896478,1711673453063,-500.0,0.00049589,120]
[320896479,1711673453074,-510.82802431,0.00049589,120]
[320896480,1711673453084,-500.0,0.00049589,120]
[320896481,1711673453094,-500.0,0.00049589,120]
[320896482,1711673453103,-500.0,0.00049589,120]
[320896483,1711673453113,-500.0,0.00049589,120]
[320896484,1711673453123,-418.48,0.00049589,120]
[320896485,1711673453133,-500.0,0.00049589,120]
[320896486,1711673453143,-672.6,0.00049589,120]
[320896487,1711673453152,-500.0,0.00049589,120]
[320896488,1711673453162,-500.0,0.00049589,120]
[320896489,1711673453171,-500.0,0.00049589,120]
[320896490,1711673453180,-500.0,0.00049589,120]
[320896491,1711673453190,-500.0,0.00049589,120]
[320896492,1711673453199,-500.0,0.00049589,120]
[320896493,1711673453208,-500.0,0.00049589,120]
[320896494,1711673453217,-500.0,0.00049589,120]
[320896495,1711673453227,-328.32,0.00049589,120]
[320896496,1711673453237,-539.75,0.00049589,120]
[320896497,1711673453246,-500.0,0.00049589,120]
[320896498,1711673453256,-500.0,0.00049589,120]
[320896499,1711673453265,-500.0,0.00049589,120]
[320896500,1711673453274,-500.0,0.00049589,120]
[320896501,1711673453283,-500.0,0.00049589,7]
[320896502,1711673453293,-500.0,0.00049589,120]
[320896503,1711673453303,-500.0,0.00049589,120]
[320896504,1711673453313,-2451.34,0.00049589,120]
[320896505,1711673453323,-501.9,0.00049589,120]
[320896506,1711673453332,-808.2,0.00049589,120]
[320896507,1711673453341,-500.0,0.00049589,120]
[320896508,1711673453351,-500.0,0.00049589,120]
[320896509,1711673453360,-352.44,0.00049589,120]
[320896510,1711673453369,-493.91,0.00049589,120]
[320896511,1711673453379,-500.0,0.00049589,65]
[320896512,1711673453389,-452.64,0.00049589,120]
[320896513,1711673453398,-500.0,0.00049589,120]
[320896514,1711673453406,-862.99,0.00049589,120]
[320896515,1711673453416,-500.0,0.00049589,120]
[320896516,1711673453425,-500.0,0.00049589,120]
[320896517,1711673453434,-807.99,0.00049589,120]
[320896518,1711673453444,-964.18,0.00049589,120]
[320896519,1711673453453,-1189.17,0.00049589,120]
[320896520,1711673453462,-500.0,0.00049589,120]
[320896521,1711673453471,-500.0,0.00049589,120]
[320896522,1711673453480,-500.0,0.00049589,120]
[320896523,1711673453489,-500.0,0.00049589,120]
[320896524,1711673453498,-500.0,0.00049589,120]
[320896525,1711673453507,-500.0,0.00049589,120]
[320896526,1711673453517,-500.0,0.00049589,120]
[320896527,1711673453526,-500.0,0.00049589,120]
[320896528,1711673453536,-500.0,0.00049589,120]
[320896529,1711673453545,-500.0,0.00049589,120]
[320896530,1711673453554,-489.06,0.00049589,120]
[320896531,1711673453563,-869.19,0.00049589,120]
[320896532,1711673453572,-1961.36,0.00049589,120]
[320896533,1711673453581,-500.0,0.00049589,120]
[320896534,1711673453590,-500.0,0.00049589,120]
[320896535,1711673453599,-237.168588,0.00049589,120]
[320896536,1711673453609,-237.168588,0.00049589,120]
[320896537,1711673453618,-237.168588,0.00049589,120]
[320896538,1711673453627,-500.0,0.00049589,120]
[320896539,1711673453637,-506.19845332,0.00049589,120]
[320896540,1711673453646,-500.0,0.00049589,120]
[320896541,1711673453656,-237.168588,0.00049589,120]
[320896542,1711673453665,-500.0,0.00049589,120]
[320896543,1711673453674,-1396.85,0.00049589,120]
[320896544,1711673453683,-237.168588,0.00049589,120]
[320896545,1711673453693,-1181.64,0.00049589,120]
[320896546,1711673453703,-237.168591,0.00049589,120]
[320896547,1711673453713,-801.75,0.00049589,120]
[320896548,1711673453722,-1328.02,0.00049589,120]
[320896549,1711673453731,-500.0,0.00049589,80]
[320896550,1711673453794,-545.82,0.00049589,120]
[320896551,1711673453803,-1632.37,0.00049589,120]
[320896552,1711673453813,-606.32,0.00049589,120]
[320896553,1711673453822,-500.0,0.00049589,120]
[320896554,1711673453831,-500.0,0.00049589,120]
[320896555,1711673453841,-1153.5,0.00049589,120]
[320896556,1711673453850,-500.0,0.00049589,2]
[320896557,1711673453859,-500.0,0.00049589,120]
[320896558,1711673453868,-500.0,0.00049589,120]
[320896559,1711673453878,-500.0,0.00049589,120]
[320896560,1711673453888,-500.0,0.00049589,120]
[320896561,1711673453897,-500.0,0.00049589,120]
[320896562,1711673453906,-500.0,0.00049589,120]
[320896563,1711673453916,-637.80763545,0.00049589,120]
[320896564,1711673453925,-500.0,0.00049589,120]
[320896565,1711673453934,-500.0,0.00049589,120]
[320896566,1711673453947,-296.31691261,0.00049589,120]
[320896567,1711673453956,-510.68294652,0.00049589,120]
[320896568,1711673453965,-587.12,0.00049589,120]
[320896569,1711673453974,-500.0,0.00049589,120]
[320896570,1711673453984,-500.0,0.00049589,120]
[320896571,1711673453993,-500.0,0.00049589,120]
[320896572,1711673454001,-837.7,0.00049589,120]
[320896573,1711673454010,-693.92,0.00049589,120]
[320896574,1711673454019,-153.18,0.00049589,120]
[320896575,1711673454029,-500.0,0.00049589,120]
[320896576,1711673454038,-500.0,0.00049589,120]
[320896577,1711673454049,-508.28842428,0.00049589,120]
[320896578,1711673454058,-755.98,0.00049589,120]
[320896579,1711673454068,-500.0,0.00049589,120]
[320896580,1711673454077,-500.0,0.00049589,120]
[320896581,1711673454086,-500.0,0.00049589,120]
[320896582,1711673454097,-5619.06,0.00049589,120]
[320896583,1711673454106,-500.0,0.00049589,120]
[320896584,1711673454114,-500.0,0.00049589,120]
[320896585,1711673454123,-7958.74,0.00049589,120]
[320896586,1711673454133,-508.29956793,0.00049589,120]
[320896587,1711673454143,-506.02297598,0.00049589,120]
[320896588,1711673454151,-500.0,0.00049589,120]
[320896589,1711673454161,-500.0,0.00049589,120]
[320896590,1711673454170,-500.0,0.00049589,120]
[320896591,1711673454179,-588.61,0.00049589,120]
[320896592,1711673454188,-1294.82,0.00049589,120]
[320896593,1711673454199,-405.99,0.00049589,120]
[320896594,1711673454208,-512.59387337,0.00049589,120]
[320896595,1711673454217,-500.0,0.00049589,120]
[320896596,1711673454226,-243.2,0.00049589,120]
[320896597,1711673454235,-500.0,0.00049589,120]
[320896598,1711673454244,-1258.38,0.00049589,120]
[320896599,1711673454253,-661.06,0.00049589,120]
[320896600,1711673454262,-560.73,0.00049589,120]
[320896601,1711673454271,-500.0,0.00049589,120]
[320896602,1711673454280,-500.0,0.00049589,120]
[320896603,1711673454289,-2832.51,0.00049589,120]
[320896604,1711673454300,-500.0,0.00049589,120]
[320896605,1711673454309,-500.0,0.00049589,120]
[320896606,1711673454318,-1242.09,0.00049589,120]
[320896607,1711673454327,-1562.01,0.00049589,120]
[320896608,1711673454336,-500.0,0.00049589,120]
[320896609,1711673454345,-255.071683,0.00049589,120]
[320896610,1711673454354,-395.55328484,0.00049589,120]
[320896611,1711673454363,-1152.74,0.00049589,120]
[320896612,1711673454372,-255.071683,0.00049589,120]
[320896613,1711673454381,-255.071683,0.00049589,120]
[320896614,1711673454390,-500.0,0.00049589,120]
[320896615,1711673454399,-255.071683,0.00049589,120]
[320896616,1711673454408,-255.071683,0.00049589,120]
[320896617,1711673454417,-255.071675,0.00049589,120]
[320896618,1711673454426,-500.0,0.00049589,120]
[320896619,1711673454435,-500.0,0.00049589,120]
[320896620,1711673454445,-508.15,0.00049589,120]
[320896621,1711673454454,-500.0,0.00049589,120]
[320896622,1711673454463,-1310.48,0.00049589,120]
[320896623,1711673454472,-500.0,0.00049589,120]
[320896624,1711673454481,-978.48,0.00049589,120]
[320896625,1711673454490,-500.0,0.00049589,120]
[320896626,1711673454499,-500.0,0.00049589,120]
[320896627,1711673454508,-245.42,0.00049589,120]
[320896628,1711673454517,-500.0,0.00049589,120]
[320896629,1711673454526,-500.0,0.00049589,120]
[320896630,1711673454535,-631.17,0.00049589,120]
[320896631,1711673454544,-500.0,0.00049589,120]
[320896632,1711673454553,-918.9,0.00049589,120]
[320896633,1711673454562,-500.0,0.00049589,120]
[320896634,1711673454571,-939.22,0.00049589,120]
[320896635,1711673454581,-1210.67,0.00049589,120]
[320896636,1711673454590,-310.67618667,0.00049589,120]
[320896637,1711673454599,-723.87,0.00049589,120]
[320896638,1711673454608,-1069.55,0.00049589,120]
[320896639,1711673454617,-1412.5,0.00049589,120]
[320896640,1711673454627,-500.0,0.00049589,120]
[320896641,1711673454636,-500.0,0.00049589,120]
[320896642,1711673454645,-500.0,0.00049589,120]
[320896643,1711673454654,-344.98,0.00049589,120]
[320896644,1711673454663,-500.0,0.00049589,120]
[320896645,1711673454672,-4799.56,0.00049589,120]
[320896646,1711673454681,-1590.32,0.00049589,120]
[320896647,1711673454692,-500.0,0.00049589,120]
[320896648,1711673454701,-500.0,0.00049589,120]
[320896649,1711673454710,-500.0,0.00049589,120]
[320896650,1711673454719,-500.0,0.00049589,120]
[320896651,1711673454727,-500.0,0.00049589,120]
[320896652,1711673454736,-500.0,0.00049589,120]
[320896653,1711673454745,-500.0,0.00049589,120]
[320896654,1711673454754,-2362.22,0.00049589,120]
[320896655,1711673454763,-802.1,0.00049589,120]
[320896656,1711673454772,-444.91,0.00049589,120]
[320896657,1711673454781,-2407.8,0.00049589,120]
[320896658,1711673454790,-500.0,0.00049589,120]
[320896659,1711673454799,-792.2,0.00049589,120]
[320896660,1711673454809,-500.0,0.00049589,120]
[320896661,1711673454820,-731.15,0.00049589,120]
[320896662,1711673454830,-840.9,0.00049589,120]
[320896663,1711673454841,-596.64,0.00049589,120]
[320896664,1711673454852,-500.0,0.00049589,120]
[320896665,1711673454862,-183.03,0.00049589,120]
[320896666,1711673454871,-1039.71,0.00049589,120]
[320896667,1711673454881,-500.0,0.00049589,60]
[320896668,1711673454892,-500.0,0.00049589,120]
[320896669,1711673454902,-270.11,0.00049589,120]
[320896670,1711673454912,-500.0,0.00049589,120]
[320896671,1711673454922,-500.0,0.00049589,120]
[320896672,1711673454932,-500.0,0.00049589,120]
[320896673,1711673454942,-500.0,0.00049589,120]
[320896674,1711673454951,-730.77,0.00049589,120]
[320896675,1711673454961,-151.0,0.00049589,120]
[320896676,1711673454970,-151.0,0.00049589,120]
[320896677,1711673454979,-610.17,0.00049589,120]
[320896678,1711673454989,-500.0,0.00049589,120]
[320896679,1711673454998,-500.0,0.00049589,120]
[320896680,1711673455008,-500.0,0.00049589,120]
[320896681,1711673455017,-500.0,0.00049589,120]
[320896682,1711673455027,-606.66,0.00049589,120]
[320896683,1711673455038,-9890.54,0.00049589,120]
[320896684,1711673455053,-500.0,0.00049589,120]
[320896685,1711673455065,-573.42,0.00049589,120]
[320896686,1711673455074,-500.0,0.00049589,120]
[320896687,1711673455083,-500.0,0.00049589,120]
[320896688,1711673455093,-1134.2,0.00049589,120]
[320896689,1711673455103,-500.0,0.00049589,120]
[320896690,1711673455112,-919.69,0.00049589,120]
[320896691,1711673455122,-500.0,0.00049589,120]
[320896692,1711673455131,-271.25,0.00049589,120]
[320896693,1711673455142,-500.0,0.00049589,120]
[320896694,1711673455152,-500.0,0.00049589,120]
[320896695,1711673455161,-437.05,0.00049589,120]
[320896696,1711673455170,-1377.54,0.00049589,120]
[320896697,1711673455179,-786.58,0.00049589,120]
[320896698,1711673455189,-500.0,0.00049589,120]
[320896699,1711673455199,-500.0,0.00049589,120]
[320896700,1711673455208,-500.0,0.00049589,120]
[320896701,1711673455219,-625.18,0.00049589,120]
[320896702,1711673455228,-500.0,0.00049589,120]
[320896703,1711673455237,-500.0,0.00049589,120]
[320896704,1711673455247,-4023.92,0.00049589,120]
[320896705,1711673455255,-500.0,0.00049589,120]
[320896706,1711673455264,-3023.4,0.00049589,120]
[320896707,1711673455274,-500.0,0.00049589,120]
[320896708,1711673455283,-636.31,0.00049589,120]
[320896709,1711673455292,-500.0,0.00049589,120]
[320896710,1711673455302,-1100.73,0.00049589,120]
[320896711,1711673455311,-500.0,0.00049589,120]
[320896712,1711673455320,-500.0,0.00049589,120]
[320896713,1711673455330,-500.0,0.00049589,120]
[320896714,1711673455339,-500.0,0.00049589,120]
[320896715,1711673455348,-500.0,0.00049589,120]
[320896716,1711673455357,-1407.91,0.00049589,120]
[320896717,1711673455366,-1089.21,0.00049589,120]
[320896718,1711673455375,-500.0,0.00049589,120]
[320896719,1711673455385,-212.23,0.00049589,120]
[320896720,1711673455394,-734.22,0.00049589,120]
[320896721,1711673455403,-919.76,0.00049589,120]
[320896722,1711673455412,-500.0,0.00049589,120]
[320896723,1711673455421,-500.0,0.00049589,2]
[320896724,1711673455431,-500.0,0.00049589,120]
[320896725,1711673455441,-1265.19,0.00049589,120]
[320896726,1711673455450,-980.15,0.00049589,120]
[320896727,1711673455459,-995.13,0.00049589,120]
[320896728,1711673455469,-500.0,0.00049589,120]
[320896729,1711673455478,-500.0,0.00049589,120]
[320896730,1711673455487,-500.0,0.00049589,120]
[320896731,1711673455496,-500.0,0.00049589,120]
[320896732,1711673455505,-500.0,0.00049589,120]
[320896733,1711673455514,-868.14,0.00049589,120]
[320896734,1711673455524,-1180.08,0.00049589,21]
[320896735,1711673455533,-1526.27,0.00049589,120]
[320896736,1711673455542,-500.0,0.00049589,30]
[320896737,1711673455551,-509.67514831,0.00049589,120]
[320896738,1711673455561,-3425.78,0.00049589,120]
[320896739,1711673455570,-500.0,0.00049589,120]
[320896740,1711673455579,-500.0,0.00049589,120]
[320896741,1711673455589,-763.58,0.00049589,120]
[320896742,1711673455598,-500.0,0.00049589,120]
[320896743,1711673455607,-507.87154925,0.00049589,120]
[320896744,1711673455617,-788.83,0.00049589,120]
[320896745,1711673455626,-500.0,0.00049589,120]
[320896746,1711673455635,-500.0,0.00049589,120]
[320896747,1711673455645,-1621.94,0.00049589,120]
[320896748,1711673455654,-500.0,0.00049589,120]
[320896749,1711673455663,-520.81,0.00049589,120]
[320896750,1711673455673,-500.0,0.00049589,120]
[320896751,1711673455682,-500.0,0.00049589,120]
[320896752,1711673455693,-826.69,0.00049589,120]
[320896753,1711673455702,-210.73430102,0.00049589,120]
[320896754,1711673455712,-3176.79,0.00049589,120]
[320896755,1711673455721,-725.98,0.00049589,120]
[320896756,1711673455731,-500.0,0.00049589,120]
[320896757,1711673455740,-500.0,0.00049589,120]
[320896758,1711673455749,-976.73,0.00049589,120]
[320896759,1711673455758,-500.0,0.00049589,120]
[320896760,1711673455767,-500.0,0.00049589,120]
[320896761,1711673455777,-2485.37,0.00049589,120]
[320896762,1711673455786,-729.23,0.00049589,120]
[320896763,1711673455795,-500.0,0.00049589,120]
[320896764,1711673455805,-1659.15,0.00049589,120]
[320896765,1711673455814,-500.0,0.00049589,120]
[320896766,1711673455824,-500.0,0.00049589,120]
[320896767,1711673455833,-500.0,0.00049589,120]
[320896768,1711673455842,-766.33,0.00049589,120]
[320896769,1711673455851,-625.56,0.00049589,120]
[320896770,1711673455861,-500.0,0.00049589,120]
[320896771,1711673455870,-500.0,0.00049589,120]
[320896772,1711673455879,-1196.14,0.00049589,120]
[320896773,1711673455889,-500.0,0.00049589,120]
[320896774,1711673455898,-1177.99,0.00049589,120]
[320896775,1711673455907,-199.83,0.00049589,120]
[320896776,1711673455917,-500.0,0.00049589,120]
[320896777,1711673455926,-1126.47,0.00049589,120]
[320896778,1711673455935,-786.06,0.00049589,120]
[320896779,1711673455946,-390.2,0.00049589,120]
[320896780,1711673455955,-773.98,0.00049589,120]
[320896781,1711673455964,-500.0,0.00049589,120]
[320896782,1711673455974,-500.0,0.00049589,120]
[320896783,1711673455983,-500.0,0.00049589,120]
[320896784,1711673455993,-845.19,0.00049589,120]
[320896785,1711673456002,-500.0,0.00049589,120]
[320896786,1711673456012,-1590.9,0.00049589,120]
[320896787,1711673456021,-950.48,0.00049589,120]
[320896788,1711673456031,-500.0,0.00049589,2]
[320896789,1711673456041,-500.0,0.00049589,120]
[320896790,1711673456053,-617.24,0.00049589,120]
[320896791,1711673456062,-249.66,0.00049589,120]
[320896792,1711673456072,-500.0,0.00049589,120]
[320896793,1711673456081,-860.72,0.00049589,120]
[320896794,1711673456092,-525.07,0.00049589,120]
[320896795,1711673456101,-562.07,0.00049589,120]
[320896796,1711673456110,-500.0,0.00049589,120]
[320896797,1711673456120,-500.0,0.00049589,120]
[320896798,1711673456130,-872.56,0.00049589,120]
[320896799,1711673456139,-879.8,0.00049589,120]
[320896800,1711673456149,-585.81,0.00049589,120]
[320896801,1711673456159,-500.0,0.00049589,120]
[320896802,1711673456168,-650.71,0.00049589,120]
[320896803,1711673456178,-500.0,0.00049589,120]
[320896804,1711673456187,-1014.96,0.00049589,120]
[320896805,1711673456198,-935.28,0.00049589,120]
[320896806,1711673456207,-828.17,0.00049589,120]
[320896807,1711673456217,-500.0,0.00049589,120]
[320896808,1711673456226,-150.0,0.00049611,7]
[320896809,1711673456236,-150.0,0.00049616,7]
[320896810,1711673456245,-159.37394239,0.00049655,30]
[320896811,1711673456255,-368.85,0.00049736,120]
[320896812,1711673456264,-1500.0,0.00049744,7]
[320896813,1711673456273,-300.0,0.00049762,7]
[320896814,1711673456283,-515.0,0.00049781,60]
[320896815,1711673456292,-153.468794,0.00049786,30]
[320896816,1711673456302,-423.57387,0.00049786,30]
[320896817,1711673456312,-577.042664,0.00049786,30]
[320896818,1711673456321,-2500.0,0.00049795,90]
[320896819,1711673456331,-151.0,0.00049795,120]
[320896820,1711673456340,-3788.9,0.000498,48]
[320896821,1711673456350,-1675.11050418,0.000498,2]
[320896822,1711673456359,-316.48888889,0.00049808,120]
[320896823,1711673456368,-150.0,0.00049815,7]
[320896824,1711673456377,-700.0,0.00049825,90]
[320896825,1711673456387,-150.0,0.00049826,7]
[320896826,1711673456396,-150.0,0.00049836,7]
[320896827,1711673456406,-150.0,0.00049847,7]
[320896828,1711673456416,-422.36,0.00049862,120]